[Event "December 19 Early 2023"]
[Site "https://www.chess.com"]
[Date "2023.12.19"]
[Round "6"]
[White "Manukyan, Sargis V."]
[Black "Ezat, Mohamed"]
[Result "0-1"]
[Board "109"]
[TimeControl "180+1"]
[WhiteFideId "13303465"]
[BlackFideId "10600906"]
[WhiteElo "2236"]
[BlackElo "2367"]
[WhiteTeam "ARM"]
[BlackTeam "EGY"]
[WhiteClock "0:00:04"]
[BlackClock "0:00:07"]

1. d4 {[%clk 0:02:40]}  Nf6 {[%clk 0:00:39]} 2. c4 {[%clk 0:02:39]}  g6 {[%clk 0:00:39]} 3. Nc3 {[%clk 0:02:39]}  Bg7 {[%clk 0:00:39]} 4. e4 {[%clk 0:02:40]}  O-O {[%clk 0:00:40]} 5. Be2 {[%clk 0:02:40]}  d6 {[%clk 0:00:40]} 6. Nf3 {[%clk 0:02:41]}  e5 {[%clk 0:00:39]} 7. O-O {[%clk 0:02:40]}  Nc6 {[%clk 0:00:38]} 8. d5 {[%clk 0:02:40]}  Ne7 {[%clk 0:00:38]} 9. Ne1 {[%clk 0:02:41]}  Nd7 {[%clk 0:00:38]} 10. Nd3 {[%clk 0:02:42]}  f5 {[%clk 0:00:38]} 11. Bd2 {[%clk 0:02:43]}  Nf6 {[%clk 0:00:38]} 12. f3 {[%clk 0:02:43]}  f4 {[%clk 0:00:38]} 13. c5 {[%clk 0:02:43]}  g5 {[%clk 0:00:38]} 14. cxd6 {[%clk 0:02:43]}  cxd6 {[%clk 0:00:38]} 15. h3 {[%clk 0:02:44]}  Ng6 {[%clk 0:00:39]} 16. Nf2 {[%clk 0:02:44]}  Rf7 {[%clk 0:00:38]} 17. Qc2 {[%clk 0:02:44]}  h5 {[%clk 0:00:38]} 18. Rfc1 {[%clk 0:02:45]}  Bf8 {[%clk 0:00:30]} 19. Nb5 {[%clk 0:02:43]}  Ne8 {[%clk 0:00:18]} 20. a4 {[%clk 0:02:42]}  Rg7 {[%clk 0:00:17]} 21. Ra3 {[%clk 0:02:42]}  a6 {[%clk 0:00:18]} 22. Rc3 {[%clk 0:02:41]}  Bd7 {[%clk 0:00:17]} 23. Nc7 {[%clk 0:02:39]}  Nxc7 {[%clk 0:00:17]} 24. Rxc7 {[%clk 0:02:40]}  b5 {[%clk 0:00:17]} 25. a5 {[%clk 0:02:31]}  Nh8 {[%clk 0:00:16]} 26. Bb4 {[%clk 0:02:12]}  Nf7 {[%clk 0:00:16]} 27. Qd1 {[%clk 0:01:56]}  Nh6 {[%clk 0:00:16]} 28. Kf1 {[%clk 0:01:55]}  Kh8 {[%clk 0:00:16]} 29. R7c3 {[%clk 0:01:30]}  Be7 {[%clk 0:00:15]} 30. R1c2 {[%clk 0:01:19]}  g4 {[%clk 0:00:16]} 31. fxg4 {[%clk 0:01:18]}  hxg4 {[%clk 0:00:17]} 32. hxg4 {[%clk 0:01:19]}  Bh4 {[%clk 0:00:16]} 33. Rh3 {[%clk 0:01:18]}  Qg5 {[%clk 0:00:16]} 34. Bxd6 {[%clk 0:01:13]}  Kg8 {[%clk 0:00:12]} 35. Rc7 {[%clk 0:01:07]}  Bxf2 {[%clk 0:00:12]} 36. Kxf2 {[%clk 0:00:56]}  Nxg4+ {[%clk 0:00:12]} 37. Bxg4 {[%clk 0:00:52]}  Bxg4 {[%clk 0:00:13]} 38. Rxg7+ {[%clk 0:00:51]}  Kxg7 {[%clk 0:00:14]} 39. Bxe5+ {[%clk 0:00:51]}  Kg6 {[%clk 0:00:13]} 40. Qc2 {[%clk 0:00:34]}  Bxh3 {[%clk 0:00:13]} 41. Qc6+ {[%clk 0:00:32]}  Kh5 {[%clk 0:00:12]} 42. gxh3 {[%clk 0:00:28]}  Rg8 {[%clk 0:00:10]} 43. Qf6 {[%clk 0:00:06]}  Qg3+ {[%clk 0:00:08]} 44. Ke2 {[%clk 0:00:05]}  Qe3+ {[%clk 0:00:08]} 45. Kd1 {[%clk 0:00:04]}  Rg1+ {[%clk 0:00:07]} 46. Kc2 {[%clk 0:00:04]}  Rc1# {[%clk 0:00:07]} 0-1

[Event "December 19 Early 2023"]
[Site "https://www.chess.com"]
[Date "2023.12.19"]
[Round "6"]
[White "Burovic, Rijad"]
[Black "Lacasa Diaz, Josep Anton"]
[Result "1-0"]
[Board "110"]
[TimeControl "180+1"]
[WhiteFideId "14407701"]
[BlackFideId "2203375"]
[WhiteElo "2384"]
[BlackElo "2338"]
[WhiteTeam "BIH"]
[BlackTeam "ESP"]
[WhiteClock "0:02:20"]
[BlackClock "0:00:17"]

1. e4 {[%clk 0:03:00]}  c5 {[%clk 0:02:58]} 2. d3 {[%clk 0:03:01]}  Nc6 {[%clk 0:02:55]} 3. g3 {[%clk 0:03:01]}  g6 {[%clk 0:02:55]} 4. Bg2 {[%clk 0:03:02]}  Bg7 {[%clk 0:02:55]} 5. f4 {[%clk 0:03:02]}  d6 {[%clk 0:02:54]} 6. Nf3 {[%clk 0:03:03]}  e6 {[%clk 0:02:54]} 7. O-O {[%clk 0:03:03]}  Nge7 {[%clk 0:02:55]} 8. c3 {[%clk 0:03:04]}  O-O {[%clk 0:02:52]} 9. Be3 {[%clk 0:03:04]}  b6 {[%clk 0:02:51]} 10. d4 {[%clk 0:03:05]}  d5 {[%clk 0:02:46]} 11. e5 {[%clk 0:03:04]}  cxd4 {[%clk 0:02:31]} 12. cxd4 {[%clk 0:03:05]}  Nf5 {[%clk 0:02:26]} 13. Bf2 {[%clk 0:03:06]}  h5 {[%clk 0:02:25]} 14. Nc3 {[%clk 0:03:05]}  a6 {[%clk 0:02:16]} 15. h3 {[%clk 0:03:04]}  Bd7 {[%clk 0:02:01]} 16. g4 {[%clk 0:03:05]}  hxg4 {[%clk 0:02:00]} 17. hxg4 {[%clk 0:03:05]}  Nh6 {[%clk 0:02:00]} 18. Bh4 {[%clk 0:03:03]}  Qc8 {[%clk 0:01:53]} 19. Bh3 {[%clk 0:02:54]}  Re8 {[%clk 0:01:47]} 20. Qe1 {[%clk 0:02:52]}  Nb4 {[%clk 0:01:31]} 21. Bg5 {[%clk 0:02:41]}  Nc2 {[%clk 0:01:27]} 22. Qh4 {[%clk 0:02:41]}  Nxa1 {[%clk 0:01:27]} 23. Rxa1 {[%clk 0:02:41]}  b5 {[%clk 0:00:33]} 24. Bxh6 {[%clk 0:02:40]}  b4 {[%clk 0:00:33]} 25. Ng5 {[%clk 0:02:24]}  Qc4 {[%clk 0:00:30]} 26. Bxg7 {[%clk 0:02:20]}  Qxd4+ {[%clk 0:00:17]} 27. Kh1 {[%clk 0:02:20]} 1-0

[Event "December 19 Early 2023"]
[Site "https://www.chess.com"]
[Date "2023.12.19"]
[Round "6"]
[White "Porozhnyak, Maya"]
[Black "Rojas Alarcon, Julian Antonio"]
[Result "0-1"]
[Board "111"]
[TimeControl "180+1"]
[WhiteFideId "34115843"]
[BlackFideId "5107407"]
[WhiteElo "1932"]
[BlackElo "2340"]
[WhiteTeam "RUS"]
[BlackTeam "MEX"]
[WhiteClock "0:00:00"]
[BlackClock "0:00:30"]

1. e4 {[%clk 0:03:00]}  e5 {[%clk 0:02:55]} 2. Nf3 {[%clk 0:03:01]}  Nc6 {[%clk 0:02:54]} 3. d4 {[%clk 0:03:00]}  exd4 {[%clk 0:02:54]} 4. c3 {[%clk 0:03:01]}  Nf6 {[%clk 0:02:48]} 5. e5 {[%clk 0:03:01]}  Nd5 {[%clk 0:02:48]} 6. cxd4 {[%clk 0:02:56]}  d6 {[%clk 0:02:45]} 7. Be2 {[%clk 0:02:51]}  Be7 {[%clk 0:02:43]} 8. O-O {[%clk 0:02:50]}  dxe5 {[%clk 0:02:43]} 9. dxe5 {[%clk 0:02:51]}  O-O {[%clk 0:02:43]} 10. h3 {[%clk 0:02:45]}  Bf5 {[%clk 0:02:39]} 11. a3 {[%clk 0:02:44]}  Re8 {[%clk 0:02:36]} 12. Re1 {[%clk 0:02:40]}  Bf8 {[%clk 0:02:33]} 13. Bb5 {[%clk 0:02:35]}  a6 {[%clk 0:02:26]} 14. Bxc6 {[%clk 0:02:28]}  bxc6 {[%clk 0:02:27]} 15. Nd4 {[%clk 0:02:28]}  Bd7 {[%clk 0:02:23]} 16. Qf3 {[%clk 0:02:20]}  Rb8 {[%clk 0:02:17]} 17. Nd2 {[%clk 0:02:09]}  Bc5 {[%clk 0:02:12]} 18. N2b3 {[%clk 0:02:01]}  Bb6 {[%clk 0:02:04]} 19. Bd2 {[%clk 0:01:50]}  Bxd4 {[%clk 0:01:46]} 20. Nxd4 {[%clk 0:01:48]}  Rxb2 {[%clk 0:01:47]} 21. Re2 {[%clk 0:01:36]}  Qb8 {[%clk 0:01:43]} 22. Kh2 {[%clk 0:01:35]}  Qb6 {[%clk 0:01:42]} 23. Nf5 {[%clk 0:01:08]}  Rb3 {[%clk 0:01:39]} 24. Qg4 {[%clk 0:01:03]}  Bxf5 {[%clk 0:01:38]} 25. Qxf5 {[%clk 0:01:04]}  Re6 {[%clk 0:01:37]} 26. Rd1 {[%clk 0:00:52]}  Rxa3 {[%clk 0:01:35]} 27. Bg5 {[%clk 0:00:47]}  h6 {[%clk 0:01:32]} 28. Rde1 {[%clk 0:00:41]}  hxg5 {[%clk 0:01:30]} 29. Qxg5 {[%clk 0:00:40]}  Qb4 {[%clk 0:01:14]} 30. Re4 {[%clk 0:00:38]}  Qe7 {[%clk 0:01:14]} 31. Qc1 {[%clk 0:00:37]}  Ra2 {[%clk 0:01:12]} 32. Kg1 {[%clk 0:00:33]}  a5 {[%clk 0:01:08]} 33. Qc4 {[%clk 0:00:32]}  Nb4 {[%clk 0:00:57]} 34. Rb1 {[%clk 0:00:27]}  Rd2 {[%clk 0:00:49]} 35. Qc3 {[%clk 0:00:21]}  Qd7 {[%clk 0:00:48]} 36. Rbe1 {[%clk 0:00:18]}  Rd1 {[%clk 0:00:47]} 37. Qc5 {[%clk 0:00:15]}  Rxe1+ {[%clk 0:00:47]} 38. Rxe1 {[%clk 0:00:15]}  Nd3 {[%clk 0:00:47]} 39. Qe3 {[%clk 0:00:09]}  Nxe1 {[%clk 0:00:47]} 40. Qxe1 {[%clk 0:00:10]}  a4 {[%clk 0:00:48]} 41. Qb4 {[%clk 0:00:10]}  c5 {[%clk 0:00:47]} 42. Qxc5 {[%clk 0:00:09]}  Re8 {[%clk 0:00:45]} 43. f4 {[%clk 0:00:07]}  g6 {[%clk 0:00:44]} 44. Kh2 {[%clk 0:00:07]}  Ra8 {[%clk 0:00:41]} 45. Qa3 {[%clk 0:00:07]}  Qd4 {[%clk 0:00:39]} 46. Qf3 {[%clk 0:00:07]}  c6 {[%clk 0:00:35]} 47. Qxc6 {[%clk 0:00:04]}  Qxf4+ {[%clk 0:00:34]} 48. Kg1 {[%clk 0:00:04]}  Rd8 {[%clk 0:00:31]} 49. Qc1 {[%clk 0:00:00]}  Qxc1+ {[%clk 0:00:30]} 0-1

[Event "December 19 Early 2023"]
[Site "https://www.chess.com"]
[Date "2023.12.19"]
[Round "6"]
[White "Uritsky, Yonathan"]
[Black "Novoselov, Roman"]
[Result "1-0"]
[Board "112"]
[TimeControl "180+1"]
[WhiteFideId "2825651"]
[BlackFideId "4135067"]
[WhiteElo "2168"]
[BlackElo "2250"]
[WhiteTeam "ISR"]
[BlackTeam "RUS"]
[WhiteClock "0:00:22"]
[BlackClock "0:00:00"]

1. Nf3 {[%clk 0:03:00]}  d5 {[%clk 0:02:58]} 2. g3 {[%clk 0:03:00]}  Nf6 {[%clk 0:02:57]} 3. Bg2 {[%clk 0:02:59]}  c6 {[%clk 0:02:58]} 4. O-O {[%clk 0:02:58]}  Bf5 {[%clk 0:02:44]} 5. b3 {[%clk 0:02:54]}  Nbd7 {[%clk 0:02:43]} 6. Bb2 {[%clk 0:02:53]}  h6 {[%clk 0:02:43]} 7. c4 {[%clk 0:02:51]}  e6 {[%clk 0:02:42]} 8. d3 {[%clk 0:02:51]}  Be7 {[%clk 0:02:40]} 9. Nc3 {[%clk 0:02:51]}  O-O {[%clk 0:02:39]} 10. Qc2 {[%clk 0:02:50]}  Rc8 {[%clk 0:02:35]} 11. e4 {[%clk 0:02:49]}  dxe4 {[%clk 0:02:33]} 12. dxe4 {[%clk 0:02:50]}  Bh7 {[%clk 0:02:33]} 13. Rad1 {[%clk 0:02:49]}  Qc7 {[%clk 0:02:33]} 14. Rfe1 {[%clk 0:02:48]}  Rfd8 {[%clk 0:02:13]} 15. Qe2 {[%clk 0:02:41]}  Bc5 {[%clk 0:01:29]} 16. h3 {[%clk 0:02:34]}  Qxg3 {[%clk 0:01:17]} 17. Na4 {[%clk 0:02:34]}  Qf4 {[%clk 0:00:58]} 18. Bxf6 {[%clk 0:01:57]}  Qxf6 {[%clk 0:00:53]} 19. Rxd7 {[%clk 0:01:57]}  Bxf2+ {[%clk 0:00:52]} 20. Qxf2 {[%clk 0:01:58]}  Rxd7 {[%clk 0:00:52]} 21. Nc5 {[%clk 0:01:56]}  Rdc7 {[%clk 0:00:48]} 22. Nd3 {[%clk 0:01:31]}  b6 {[%clk 0:00:46]} 23. Qg3 {[%clk 0:01:28]}  Rd7 {[%clk 0:00:37]} 24. Nde5 {[%clk 0:01:27]}  Rdd8 {[%clk 0:00:37]} 25. Rf1 {[%clk 0:01:21]}  Qe7 {[%clk 0:00:28]} 26. Ng4 {[%clk 0:00:59]}  Kh8 {[%clk 0:00:28]} 27. Nfe5 {[%clk 0:00:49]}  f6 {[%clk 0:00:28]} 28. Qh4 {[%clk 0:00:49]}  Qc5+ {[%clk 0:00:24]} 29. Kh2 {[%clk 0:00:45]}  fxe5 {[%clk 0:00:25]} 30. Nxh6 {[%clk 0:00:43]}  gxh6 {[%clk 0:00:18]} 31. Qf6+ {[%clk 0:00:43]}  Kg8 {[%clk 0:00:18]} 32. Qxe6+ {[%clk 0:00:44]}  Kh8 {[%clk 0:00:19]} 33. Qf6+ {[%clk 0:00:31]}  Kg8 {[%clk 0:00:00]} 34. Rf3 {[%clk 0:00:22]} 1-0

[Event "December 19 Early 2023"]
[Site "https://www.chess.com"]
[Date "2023.12.19"]
[Round "6"]
[White "Kim, Sergey"]
[Black "Eilers, Stefan"]
[Result "1-0"]
[Board "113"]
[TimeControl "180+1"]
[WhiteFideId "13700570"]
[BlackFideId "4609565"]
[WhiteElo "2598"]
[BlackElo "2443"]
[WhiteTeam "KAZ"]
[BlackTeam "GER"]
[WhiteClock "0:02:15"]
[BlackClock "0:01:13"]

1. d4 {[%clk 0:03:00]}  d5 {[%clk 0:02:58]} 2. c4 {[%clk 0:03:00]}  e6 {[%clk 0:02:59]} 3. Nc3 {[%clk 0:03:00]}  c5 {[%clk 0:03:00]} 4. e3 {[%clk 0:03:00]}  Nf6 {[%clk 0:02:59]} 5. Nf3 {[%clk 0:03:00]}  a6 {[%clk 0:02:59]} 6. a3 {[%clk 0:03:00]}  dxc4 {[%clk 0:02:59]} 7. Bxc4 {[%clk 0:03:00]}  b5 {[%clk 0:03:00]} 8. Ba2 {[%clk 0:03:00]}  Bb7 {[%clk 0:03:01]} 9. O-O {[%clk 0:03:00]}  Nc6 {[%clk 0:02:58]} 10. Qe2 {[%clk 0:02:59]}  cxd4 {[%clk 0:02:56]} 11. Rd1 {[%clk 0:02:59]}  Bd6 {[%clk 0:02:51]} 12. exd4 {[%clk 0:02:56]}  O-O {[%clk 0:02:49]} 13. Bg5 {[%clk 0:02:55]}  Be7 {[%clk 0:02:49]} 14. Rac1 {[%clk 0:02:46]}  Na5 {[%clk 0:02:39]} 15. Ne5 {[%clk 0:02:44]}  Nd5 {[%clk 0:02:34]} 16. Bd2 {[%clk 0:02:34]}  Nxc3 {[%clk 0:02:24]} 17. Bxc3 {[%clk 0:02:31]}  Nc6 {[%clk 0:02:17]} 18. d5 {[%clk 0:02:22]}  exd5 {[%clk 0:01:13]} 19. Bxd5 {[%clk 0:02:15]} 1-0

[Event "December 19 Early 2023"]
[Site "https://www.chess.com"]
[Date "2023.12.19"]
[Round "6"]
[White "Hajiyev, Kanan"]
[Black "Melikhov, Evgeny V."]
[Result "1/2-1/2"]
[Board "114"]
[TimeControl "180+1"]
[WhiteFideId "13404148"]
[BlackFideId "4122046"]
[WhiteElo "2102"]
[BlackElo "2165"]
[WhiteTeam "AZE"]
[BlackTeam "GRE"]
[WhiteClock "0:00:07"]
[BlackClock "0:00:26"]

1. d4 {[%clk 0:02:31]}  Nf6 {[%clk 0:02:58]} 2. Nf3 {[%clk 0:02:32]}  d5 {[%clk 0:02:57]} 3. c4 {[%clk 0:02:32]}  e6 {[%clk 0:02:57]} 4. cxd5 {[%clk 0:02:33]}  exd5 {[%clk 0:02:57]} 5. Nc3 {[%clk 0:02:33]}  Bb4 {[%clk 0:02:56]} 6. Qb3 {[%clk 0:02:33]}  c5 {[%clk 0:02:56]} 7. dxc5 {[%clk 0:02:32]}  Bxc5 {[%clk 0:02:38]} 8. Qb5+ {[%clk 0:02:25]}  Nbd7 {[%clk 0:02:37]} 9. Bg5 {[%clk 0:02:18]}  Qb6 {[%clk 0:02:23]} 10. e3 {[%clk 0:02:08]}  Qxb5 {[%clk 0:02:17]} 11. Bxb5 {[%clk 0:02:07]}  Bb4 {[%clk 0:02:08]} 12. Bxf6 {[%clk 0:02:02]}  gxf6 {[%clk 0:02:07]} 13. O-O-O {[%clk 0:02:02]}  Bxc3 {[%clk 0:02:05]} 14. bxc3 {[%clk 0:02:02]}  a6 {[%clk 0:01:59]} 15. Bxd7+ {[%clk 0:01:59]}  Bxd7 {[%clk 0:01:59]} 16. Rxd5 {[%clk 0:01:55]}  Be6 {[%clk 0:01:59]} 17. Rd2 {[%clk 0:01:55]}  Ke7 {[%clk 0:01:57]} 18. Nd4 {[%clk 0:01:55]}  Rhc8 {[%clk 0:01:56]} 19. Kb2 {[%clk 0:01:54]}  b5 {[%clk 0:01:49]} 20. f4 {[%clk 0:01:47]}  f5 {[%clk 0:01:47]} 21. Rhd1 {[%clk 0:01:44]}  Rc4 {[%clk 0:01:45]} 22. a3 {[%clk 0:01:42]}  Rac8 {[%clk 0:01:43]} 23. Rd3 {[%clk 0:01:18]}  a5 {[%clk 0:01:42]} 24. R1d2 {[%clk 0:00:51]}  b4 {[%clk 0:01:40]} 25. cxb4 {[%clk 0:00:49]}  axb4 {[%clk 0:01:41]} 26. Nxe6 {[%clk 0:00:22]}  bxa3+ {[%clk 0:01:31]} 27. Rxa3 {[%clk 0:00:23]}  fxe6 {[%clk 0:01:31]} 28. Ra7+ {[%clk 0:00:23]}  Kf6 {[%clk 0:01:30]} 29. Rb7 {[%clk 0:00:12]}  R8c7 {[%clk 0:01:20]} 30. Rxc7 {[%clk 0:00:13]}  Rxc7 {[%clk 0:01:20]} 31. Rc2 {[%clk 0:00:11]}  Rd7 {[%clk 0:01:15]} 32. Kc3 {[%clk 0:00:10]}  Rd1 {[%clk 0:01:15]} 33. Rd2 {[%clk 0:00:10]}  Re1 {[%clk 0:01:12]} 34. Kd3 {[%clk 0:00:10]}  e5 {[%clk 0:01:12]} 35. Ra2 {[%clk 0:00:04]}  exf4 {[%clk 0:01:12]} 36. exf4 {[%clk 0:00:05]}  Re4 {[%clk 0:01:09]} 37. g3 {[%clk 0:00:05]}  h5 {[%clk 0:01:05]} 38. Re2 {[%clk 0:00:06]}  Ra4 {[%clk 0:01:04]} 39. Ke3 {[%clk 0:00:07]}  Ra3+ {[%clk 0:00:59]} 40. Kf2 {[%clk 0:00:07]}  h4 {[%clk 0:00:54]} 41. Re3 {[%clk 0:00:08]}  Ra2+ {[%clk 0:00:53]} 42. Kf3 {[%clk 0:00:08]}  hxg3 {[%clk 0:00:49]} 43. hxg3 {[%clk 0:00:08]}  Rb2 {[%clk 0:00:49]} 44. Rd3 {[%clk 0:00:08]}  Ra2 {[%clk 0:00:48]} 45. Rc3 {[%clk 0:00:09]}  Rb2 {[%clk 0:00:48]} 46. Ra3 {[%clk 0:00:09]}  Rc2 {[%clk 0:00:48]} 47. Ke3 {[%clk 0:00:09]}  Rg2 {[%clk 0:00:47]} 48. Kd4 {[%clk 0:00:09]}  Rd2+ {[%clk 0:00:45]} 49. Kc4 {[%clk 0:00:09]}  Rd1 {[%clk 0:00:43]} 50. Rc3 {[%clk 0:00:10]}  Rd2 {[%clk 0:00:43]} 51. Rd3 {[%clk 0:00:11]}  Ra2 {[%clk 0:00:39]} 52. Rd6+ {[%clk 0:00:11]}  Ke7 {[%clk 0:00:38]} 53. Rd3 {[%clk 0:00:11]}  Ke6 {[%clk 0:00:34]} 54. Kd4 {[%clk 0:00:12]}  Re2 {[%clk 0:00:31]} 55. Re3+ {[%clk 0:00:12]}  Rxe3 {[%clk 0:00:31]} 56. Kxe3 {[%clk 0:00:13]}  Ke7 {[%clk 0:00:28]} 57. Kd3 {[%clk 0:00:11]}  Kd7 {[%clk 0:00:28]} 58. Kc4 {[%clk 0:00:05]}  Kc6 {[%clk 0:00:28]} 59. Kd4 {[%clk 0:00:06]}  Kd6 {[%clk 0:00:28]} 60. Kc4 {[%clk 0:00:07]}  Kc6 {[%clk 0:00:28]} 61. Kc3 {[%clk 0:00:08]}  Kc7 {[%clk 0:00:27]} 62. Kb4 {[%clk 0:00:07]}  Kb6 {[%clk 0:00:26]} 63. Kc4 {[%clk 0:00:07]}  Kc6 {[%clk 0:00:26]} 1/2-1/2

[Event "December 19 Early 2023"]
[Site "https://www.chess.com"]
[Date "2023.12.19"]
[Round "6"]
[White "Spata, German"]
[Black "Wanyama, Harold"]
[Result "1-0"]
[Board "115"]
[TimeControl "180+1"]
[WhiteFideId "113026"]
[BlackFideId "10000380"]
[WhiteElo "2260"]
[BlackElo "2228"]
[WhiteTeam "ARG"]
[BlackTeam "UGA"]
[WhiteClock "0:00:05"]
[BlackClock "0:00:19"]

1. Nf3 {[%clk 0:02:46]}  d5 {[%clk 0:02:59]} 2. g3 {[%clk 0:02:45]}  e6 {[%clk 0:02:59]} 3. Bg2 {[%clk 0:02:45]}  Nf6 {[%clk 0:03:00]} 4. O-O {[%clk 0:02:46]}  Be7 {[%clk 0:03:00]} 5. c4 {[%clk 0:02:46]}  O-O {[%clk 0:03:00]} 6. b3 {[%clk 0:02:46]}  b6 {[%clk 0:02:59]} 7. Bb2 {[%clk 0:02:46]}  Bb7 {[%clk 0:03:00]} 8. e3 {[%clk 0:02:47]}  c5 {[%clk 0:02:56]} 9. Qe2 {[%clk 0:02:46]}  dxc4 {[%clk 0:02:53]} 10. bxc4 {[%clk 0:02:47]}  Nbd7 {[%clk 0:02:51]} 11. Nc3 {[%clk 0:02:46]}  Rc8 {[%clk 0:02:49]} 12. Rad1 {[%clk 0:02:46]}  a6 {[%clk 0:02:50]} 13. d3 {[%clk 0:02:43]}  Re8 {[%clk 0:02:49]} 14. h3 {[%clk 0:02:27]}  Bf8 {[%clk 0:02:49]} 15. g4 {[%clk 0:02:27]}  h6 {[%clk 0:02:46]} 16. Ne1 {[%clk 0:02:23]}  Bxg2 {[%clk 0:02:43]} 17. Nxg2 {[%clk 0:02:24]}  Qc7 {[%clk 0:02:42]} 18. f4 {[%clk 0:02:23]}  Nh7 {[%clk 0:02:37]} 19. Ne4 {[%clk 0:02:11]}  Qc6 {[%clk 0:02:31]} 20. g5 {[%clk 0:02:03]}  hxg5 {[%clk 0:02:27]} 21. fxg5 {[%clk 0:02:03]}  e5 {[%clk 0:02:23]} 22. Qh5 {[%clk 0:01:37]}  g6 {[%clk 0:02:06]} 23. Qf3 {[%clk 0:01:33]}  Re7 {[%clk 0:02:00]} 24. h4 {[%clk 0:01:32]}  Bg7 {[%clk 0:01:58]} 25. h5 {[%clk 0:01:30]}  gxh5 {[%clk 0:01:57]} 26. Qxh5 {[%clk 0:01:30]}  Qg6 {[%clk 0:01:57]} 27. Qh3 {[%clk 0:01:18]}  Nxg5 {[%clk 0:01:47]} 28. Nxg5 {[%clk 0:01:15]}  Qxg5 {[%clk 0:01:47]} 29. Rf3 {[%clk 0:01:05]}  Rc6 {[%clk 0:01:44]} 30. Rg3 {[%clk 0:00:57]}  Qh6 {[%clk 0:01:44]} 31. Qf5 {[%clk 0:00:47]}  Qe6 {[%clk 0:01:33]} 32. Qg5 {[%clk 0:00:40]}  f6 {[%clk 0:01:28]} 33. Qh5 {[%clk 0:00:36]}  Qf7 {[%clk 0:01:21]} 34. Qh3 {[%clk 0:00:28]}  f5 {[%clk 0:01:17]} 35. Rf1 {[%clk 0:00:28]}  Rf6 {[%clk 0:01:10]} 36. Rg5 {[%clk 0:00:28]}  Qe6 {[%clk 0:00:49]} 37. Rgxf5 {[%clk 0:00:27]}  Ref7 {[%clk 0:00:48]} 38. e4 {[%clk 0:00:25]}  Nf8 {[%clk 0:00:44]} 39. Ne3 {[%clk 0:00:24]}  Rh6 {[%clk 0:00:38]} 40. Qg3 {[%clk 0:00:16]}  Rg6 {[%clk 0:00:38]} 41. Rg5 {[%clk 0:00:17]}  Rxf1+ {[%clk 0:00:35]} 42. Nxf1 {[%clk 0:00:16]}  Rxg5 {[%clk 0:00:33]} 43. Qxg5 {[%clk 0:00:16]}  Ng6 {[%clk 0:00:33]} 44. Bc1 {[%clk 0:00:12]}  Qf6 {[%clk 0:00:31]} 45. Qxf6 {[%clk 0:00:12]}  Bxf6 {[%clk 0:00:32]} 46. Ne3 {[%clk 0:00:12]}  Kf7 {[%clk 0:00:32]} 47. Nd5 {[%clk 0:00:12]}  Bd8 {[%clk 0:00:32]} 48. Kf2 {[%clk 0:00:13]}  Nf8 {[%clk 0:00:31]} 49. Kf3 {[%clk 0:00:13]}  Ne6 {[%clk 0:00:32]} 50. Be3 {[%clk 0:00:13]}  Ke8 {[%clk 0:00:31]} 51. Kg4 {[%clk 0:00:12]}  Ng7 {[%clk 0:00:29]} 52. Bh6 {[%clk 0:00:11]}  Ne6 {[%clk 0:00:29]} 53. Be3 {[%clk 0:00:11]}  Ng7 {[%clk 0:00:28]} 54. Bh6 {[%clk 0:00:09]}  Kf7 {[%clk 0:00:27]} 55. Bxg7 {[%clk 0:00:09]}  Kxg7 {[%clk 0:00:27]} 56. Kf5 {[%clk 0:00:09]}  Kh6 {[%clk 0:00:28]} 57. Kxe5 {[%clk 0:00:09]}  Kg5 {[%clk 0:00:28]} 58. Kd6 {[%clk 0:00:09]}  Kg4 {[%clk 0:00:28]} 59. e5 {[%clk 0:00:10]}  Kf3 {[%clk 0:00:27]} 60. e6 {[%clk 0:00:10]}  Ke2 {[%clk 0:00:28]} 61. Kd7 {[%clk 0:00:08]}  Bg5 {[%clk 0:00:27]} 62. Nxb6 {[%clk 0:00:08]}  Kxd3 {[%clk 0:00:27]} 63. e7 {[%clk 0:00:06]}  Bxe7 {[%clk 0:00:26]} 64. Kxe7 {[%clk 0:00:07]}  Kc3 {[%clk 0:00:27]} 65. Kd6 {[%clk 0:00:07]}  Kb4 {[%clk 0:00:27]} 66. Kd5 {[%clk 0:00:07]}  a5 {[%clk 0:00:19]} 67. a4 {[%clk 0:00:05]} 1-0

[Event "December 19 Early 2023"]
[Site "https://www.chess.com"]
[Date "2023.12.19"]
[Round "6"]
[White "Figorito, Nick"]
[Black "Nanu, Costica-Ciprian"]
[Result "0-1"]
[Board "117"]
[TimeControl "180+1"]
[WhiteFideId "30923689"]
[BlackFideId "1204580"]
[WhiteElo "2421"]
[BlackElo "2485"]
[WhiteTeam "USA"]
[BlackTeam "ROU"]
[WhiteClock "0:00:00"]
[BlackClock "0:01:24"]

1. Nf3 {[%clk 0:03:00]}  d5 {[%clk 0:02:59]} 2. g3 {[%clk 0:03:01]}  Nf6 {[%clk 0:02:59]} 3. Bg2 {[%clk 0:03:01]}  Bg4 {[%clk 0:03:00]} 4. O-O {[%clk 0:03:02]}  Bxf3 {[%clk 0:03:00]} 5. Bxf3 {[%clk 0:03:02]}  c6 {[%clk 0:03:00]} 6. c4 {[%clk 0:03:02]}  e6 {[%clk 0:02:59]} 7. Nc3 {[%clk 0:03:01]}  Be7 {[%clk 0:02:59]} 8. cxd5 {[%clk 0:03:02]}  cxd5 {[%clk 0:02:58]} 9. d4 {[%clk 0:03:02]}  O-O {[%clk 0:02:58]} 10. Bf4 {[%clk 0:03:02]}  Nc6 {[%clk 0:02:58]} 11. e3 {[%clk 0:02:54]}  Nd7 {[%clk 0:02:57]} 12. h4 {[%clk 0:02:43]}  Rc8 {[%clk 0:02:55]} 13. Qb3 {[%clk 0:02:41]}  Na5 {[%clk 0:02:53]} 14. Qa4 {[%clk 0:02:34]}  Nc4 {[%clk 0:02:53]} 15. Qxa7 {[%clk 0:02:30]}  Nd2 {[%clk 0:02:52]} 16. Bg2 {[%clk 0:02:22]}  Nxf1 {[%clk 0:02:51]} 17. Kxf1 {[%clk 0:02:23]}  Qb6 {[%clk 0:02:50]} 18. Qxb6 {[%clk 0:02:16]}  Nxb6 {[%clk 0:02:51]} 19. e4 {[%clk 0:02:03]}  dxe4 {[%clk 0:02:48]} 20. Bxe4 {[%clk 0:02:00]}  Nd5 {[%clk 0:02:39]} 21. Nxd5 {[%clk 0:01:58]}  exd5 {[%clk 0:02:39]} 22. Bxd5 {[%clk 0:01:59]}  Rc2 {[%clk 0:02:39]} 23. Bxb7 {[%clk 0:01:45]}  Rxb2 {[%clk 0:02:38]} 24. Bf3 {[%clk 0:01:36]}  Bf6 {[%clk 0:02:37]} 25. Be3 {[%clk 0:01:25]}  Rd8 {[%clk 0:02:35]} 26. a4 {[%clk 0:01:17]}  Bxd4 {[%clk 0:02:33]} 27. Bxd4 {[%clk 0:01:01]}  Rxd4 {[%clk 0:02:34]} 28. Rd1 {[%clk 0:00:42]}  Rxd1+ {[%clk 0:02:29]} 29. Bxd1 {[%clk 0:00:43]}  Ra2 {[%clk 0:02:27]} 30. Kg2 {[%clk 0:00:38]}  Kf8 {[%clk 0:02:26]} 31. h5 {[%clk 0:00:37]}  Ke7 {[%clk 0:02:27]} 32. g4 {[%clk 0:00:36]}  Kf6 {[%clk 0:02:23]} 33. Kg3 {[%clk 0:00:33]}  Ra3+ {[%clk 0:02:21]} 34. f3 {[%clk 0:00:30]}  Ke5 {[%clk 0:02:20]} 35. Bc2 {[%clk 0:00:25]}  g6 {[%clk 0:02:14]} 36. hxg6 {[%clk 0:00:20]}  hxg6 {[%clk 0:02:13]} 37. Bd1 {[%clk 0:00:20]}  Kd4 {[%clk 0:02:12]} 38. Kf4 {[%clk 0:00:18]}  Kd3 {[%clk 0:02:12]} 39. Ke5 {[%clk 0:00:09]}  Kd2 {[%clk 0:02:11]} 40. Kf6 {[%clk 0:00:08]}  Kxd1 {[%clk 0:02:11]} 41. Kxf7 {[%clk 0:00:08]}  Rxa4 {[%clk 0:02:10]} 42. Kxg6 {[%clk 0:00:06]}  Ke2 {[%clk 0:02:11]} 43. g5 {[%clk 0:00:06]}  Kxf3 {[%clk 0:02:11]} 44. Kf6 {[%clk 0:00:06]}  Kf4 {[%clk 0:02:11]} 45. g6 {[%clk 0:00:07]}  Ra6+ {[%clk 0:02:11]} 46. Kf7 {[%clk 0:00:07]}  Kf5 {[%clk 0:02:11]} 47. g7 {[%clk 0:00:08]}  Ra7+ {[%clk 0:02:11]} 48. Kf8 {[%clk 0:00:07]}  Kf6 {[%clk 0:02:09]} 49. g8=N+ {[%clk 0:00:07]}  Ke6 {[%clk 0:02:09]} 50. Nh6 {[%clk 0:00:06]}  Rh7 {[%clk 0:02:04]} 51. Ng8 {[%clk 0:00:05]}  Rf7+ {[%clk 0:01:51]} 52. Ke8 {[%clk 0:00:04]}  Rg7 {[%clk 0:01:51]} 53. Kf8 {[%clk 0:00:05]}  Rh7 {[%clk 0:01:50]} 54. Ke8 {[%clk 0:00:04]}  Rf7 {[%clk 0:01:40]} 55. Nh6 {[%clk 0:00:03]}  Rg7 {[%clk 0:01:38]} 56. Kf8 {[%clk 0:00:03]}  Rg5 {[%clk 0:01:28]} 57. Ng8 {[%clk 0:00:00]}  Rg6 {[%clk 0:01:24]} 0-1